[Event "WALTON 1st Div Women League 2023"]
[Site "Dhaka"]
[Date "2023.03.28"]
[Round "7.8"]
[White "Warsia, Khusbu"]
[Black "Varshini V Kundar"]
[Result "0-1"]
[ECO "B84"]
[WhiteElo "1836"]
[BlackElo "1096"]
[Annotator "NA RC COMBH"]
[PlyCount "54"]
[EventDate "2023.03.22"]
[EventType "team-tourn"]
[EventCountry "BAN"]
[SourceTitle "playchess.com"]
[Source "ChessBase"]
[SourceQuality "1"]
[TimeControl "5400+30"]

1. e4 {[%emt 0:00:03]} c5 {[%emt 0:00:20]} 2. Nf3 {[%emt 0:00:06]} d6 {[%emt 0:00:07]} 3. d4 {[%emt 0:00:05]} cxd4 {[%emt 0:00:08]} 4. Nxd4 {[%emt 0:00:05]} Nf6 {[%emt 0:00:06]} 5. Nc3 {[%emt 0:00:07]} a6 {[%emt 0:00:04]} 6. Be2 {[%emt 0:00:13]} e6 {[%emt 0:00:51]} 7. Be3 {[%emt 0:00:08]} Be7 $18 {[%emt 0:00:11]} 8. O-O {[%emt 0:00:13]} Qc7 {[%emt 0:00:13]} 9. Kh1 {[%emt 0:01:00]} b5 {[%emt 0:01:20]} 10. a3 {[%emt 0:00:33]} Bb7 {[%emt 0:00:08]} 11. Bd3 {[%emt 0:10:09]} Nbd7 {[%emt 0:02:32]} 12. f4 {[%emt 0:00:58]} O-O {[%emt 0:02:15]} 13. Qf3 {[%emt 0:06:50]} Nc5 {[%emt 0:03:04]} 14. Rae1 {[%emt 0:02:21]} Qc8 {[%emt 0:14:27]} 15. Bd2 {[%emt 0:03:33]} Nfxe4 {[%emt 0:22:04]} 16. Bxe4 {[%emt 0:00:35]} Nxe4 {[%emt 0:00:05]} 17. Nxe4 {[%emt 0:00:22]} f5 {[%emt 0:00:05]} 18. Nxd6 {[%emt 0:02:16]} Bxd6 {[%emt 0:00:05]} 19. Qc3 {[%emt 0:04:20]} Be4 {[%emt 0:05:10]} 20. Qxc8 {[%emt 0:11:02]} Rfxc8 {[%emt 0:00:06]} 21. Bc3 {[%emt 0:00:50]} Bxa3 {[%emt 0:20:18]} 22. Re3 {[%emt 0:25:38]} Bc5 {[%emt 0:06:55]} 23. Rg3 {[%emt 0:00:15]} b4 {[%emt 0:04:23]} 24. Nxe6 {[%emt 0:06:55]} bxc3 {[%emt 0:00:17]} 25. Rxg7+ {[%emt 0:01:23]} Kh8 {[%emt 0:00:05]} 26. b4 {[%emt 0:00:40]} Bxb4 {[%emt 0:02:48]} 27. Rd1 {[%emt 0:00:17]} Rg8 {[%emt 0:02:08]} 0-1

[Event "WALTON 1st Div Women League 2023"]
[Site "Dhaka"]
[Date "2023.03.28"]
[Round "7.9"]
[White "Sidratul, Muntaha"]
[Black "Nargis, Kaumudi"]
[Result "0-1"]
[ECO "B12"]
[WhiteElo "1185"]
[BlackElo "1253"]
[Annotator "NA RC COMBH"]
[PlyCount "108"]
[EventDate "2023.03.22"]
[EventType "team-tourn"]
[EventCountry "BAN"]
[SourceTitle "playchess.com"]
[Source "ChessBase"]
[SourceQuality "1"]
[TimeControl "5400+30"]

1. e4 {[%emt 0:00:02]} d6 {[%emt 1:31:00]} 2. d4 {[%emt 0:00:41]} c6 {[%emt 0:00:00]} 3. Nc3 {[%emt 0:00:31]} Qc7 {[%emt 0:00:00]} 4. Nf3 {[%emt 0:02:05]} Nd7 {[%emt 0:00:00]} 5. Be2 {[%emt 0:01:29]} e5 {[%emt 0:00:00]} 6. O-O {[%emt 0:02:51]} Ngf6 {[%emt 0:00:00]} 7. h3 {[%emt 0:01:50]} Be7 {[%emt 0:00:00]} 8. Re1 {[%emt 0:01:57]} O-O {[%emt 0:00:00]} 9. Na4 {[%emt 0:03:17]} Nxe4 {[%emt 0:00:00]} 10. Bd3 {[%emt 0:01:24]} Nef6 {[%emt 0:00:00]} 11. c4 {[%emt 0:02:10]} e4 {[%emt 0:00:00]} 12. Bc2 {[%emt 0:01:06]} b5 {[%emt 0:00:00]} 13. cxb5 {[%emt 0:00:22]} cxb5 {[%emt 0:00:00]} 14. Nc3 {[%emt 0:00:41]} d5 {[%emt 0:00:00]} 15. Nd2 {[%emt 0:02:45]} b4 {[%emt 0:00:00]} 16. Ncb1 {[%emt 0:00:57]} Bd6 {[%emt 0:00:00]} 17. Nf1 {[%emt 0:00:52]} Nb6 {[%emt 0:00:00]} 18. a3 {[%emt 0:01:14]} Bd7 {[%emt 0:00:00]} 19. Bd2 {[%emt 0:01:03]} a5 {[%emt 0:00:00]} 20. a4 {[%emt 0:04:39]} Nc4 {[%emt 0:00:00]} 21. Bc1 {[%emt 0:00:26]} Qc8 {[%emt 0:00:00]} 22. b3 {[%emt 0:01:14]} Nb6 {[%emt 0:00:00]} 23. Bg5 {[%emt 0:03:02]} Be7 {[%emt 0:00:00]} 24. Ne3 {[%emt 0:01:40]} Bxh3 {[%emt 0:00:00]} 25. Bxf6 {[%emt 0:00:51]} Bxf6 {[%emt 0:00:00]} 26. Qh5 {[%emt 0:00:27]} Be6 {[%emt 0:00:00]} 27. Rc1 {[%emt 0:00:36]} Bxd4 {[%emt 0:00:00]} 28. Nd2 {[%emt 0:01:24]} Bxa1 {[%emt 0:00:00]} 29. Rxa1 {[%emt 0:00:40]} Qc3 {[%emt 0:00:00]} 30. Rd1 {[%emt 0:00:40]} Rae8 {[%emt 0:00:00]} 31. Nb1 {[%emt 0:01:55]} Qf6 {[%emt 0:00:00]} 32. Qh2 {[%emt 0:03:12]} Qe7 {[%emt 0:00:00]} 33. Nd2 {[%emt 0:02:10]} f5 {[%emt 0:00:00]} 34. Qe5 {[%emt 0:57:17]} Qc5 {[%emt 0:00:00]} 35. g3 {[%emt 0:00:00]} Nd7 {[%emt 0:00:00]} 36. Qb2 {[%emt 0:00:00]} f4 {[%emt 0:00:00]} 37. gxf4 {[%emt 0:00:00]} Rxf4 {[%emt 0:00:00]} 38. Rf1 {[%emt 0:00:00]} Bh3 {[%emt 0:18:30]} 39. Ng2 {[%emt 0:02:30]} Rf6 {[%emt 0:00:00]} 40. Kh2 {[%emt 0:00:00]} Rh6 {[%emt 0:00:00]} 41. Kg1 {[%emt 0:00:00]} Nf6 {[%emt 0:00:00]} 42. Re1 {[%emt 0:00:00]} Qc7 {[%emt 0:00:00]} 43. Bd1 {[%emt 0:00:00]} Bxg2 {[%emt 0:00:00]} 44. Kxg2 {[%emt 0:00:00]} Qh2+ {[%emt 0:00:00]} 45. Kf1 {[%emt 0:00:00]} Rf8 {[%emt 0:00:00]} 46. Bf3 {[%emt 0:00:00]} exf3 {[%emt 0:00:00]} 47. Nxf3 {[%emt 0:00:00]} Qh1+ {[%emt 0:00:00]} 48. Ke2 {[%emt 0:00:00]} Qh5 {[%emt 0:00:00]} 49. Qd4 {[%emt 0:00:00]} Ne4 {[%emt 0:00:00]} 50. Qd3 {[%emt 0:00:00]} Nc3+ {[%emt 0:00:00]} 51. Ke3 {[%emt 0:00:00]} Rxf3+ {[%emt 0:00:00]} 52. Kd2 {[%emt 0:00:00]} Rxd3+ {[%emt 0:00:00]} 53. Kxd3 {[%emt 0:00:00]} Qf3+ {[%emt 0:00:00]} 54. Re3 {[%emt 0:00:00]} Qd1# {[%emt 0:00:00]} 0-1

[Event "WALTON 1st Div Women League 2023"]
[Site "Dhaka"]
[Date "2023.03.28"]
[Round "7.10"]
[White "Sharmin, Khan"]
[Black "Sonia, Akhter"]
[Result "1/2-1/2"]
[ECO "C46"]
[WhiteElo "1290"]
[BlackElo "1180"]
[Annotator "NA RC COMBH"]
[PlyCount "98"]
[EventDate "2023.03.22"]
[EventType "team-tourn"]
[EventCountry "BAN"]
[SourceTitle "playchess.com"]
[Source "ChessBase"]
[SourceQuality "1"]
[TimeControl "5400+30"]

1. e4 {[%emt 0:00:06]} Nc6 {[%emt 0:00:07]} 2. Nf3 {[%emt 0:00:14]} e5 {[%emt 0:00:49]} 3. Nc3 {[%emt 0:00:26]} a6 {[%emt 0:04:15]} 4. d3 {[%emt 0:01:19]} Nf6 {[%emt 0:01:43]} 5. Be2 {[%emt 0:00:55]} Bc5 {[%emt 0:00:47]} 6. h3 {[%emt 0:00:23]} O-O {[%emt 0:00:20]} 7. O-O {[%emt 0:00:17]} Nh5 {[%emt 0:00:36]} 8. Re1 {[%emt 0:03:48]} h6 {[%emt 0:00:40]} 9. Nh2 {[%emt 0:02:57]} Qh4 {[%emt 0:01:16]} 10. Be3 {[%emt 0:01:33]} Bxe3 {[%emt 0:01:26]} 11. fxe3 {[%emt 0:00:20]} Ng3 {[%emt 0:00:58]} 12. Nf3 {[%emt 0:02:18]} Qf6 {[%emt 0:01:03]} 13. d4 {[%emt 0:08:08]} d6 {[%emt 0:01:08]} 14. Nd5 {[%emt 0:01:06]} Qd8 {[%emt 0:00:58]} 15. Kh2 {[%emt 0:01:47]} Nh5 {[%emt 0:01:01]} 16. Ng1 {[%emt 0:02:46]} Nf6 {[%emt 0:01:34]} 17. Nxf6+ {[%emt 0:00:23]} Qxf6 {[%emt 0:00:26]} 18. Rf1 {[%emt 0:01:31]} Qg5 {[%emt 0:03:16]} 19. Rf3 {[%emt 0:04:57]} Ne7 {[%emt 0:00:47]} 20. Rg3 {[%emt 0:00:41]} Qh4 {[%emt 0:01:02]} 21. dxe5 {[%emt 0:02:19]} dxe5 {[%emt 0:01:56]} 22. Qd3 {[%emt 0:03:11]} Be6 {[%emt 1:15:22]} 23. Bg4 {[%emt 0:01:24]} Rfd8 {[%emt 0:00:00]} 24. Qc3 {[%emt 0:01:20]} Nc6 {[%emt 0:00:00]} 25. Bxe6 {[%emt 0:00:55]} fxe6 {[%emt 0:00:00]} 26. Qb3 {[%emt 0:02:00]} Re8 {[%emt 0:00:00]} 27. Qxb7 {[%emt 0:01:40]} Qxe4 {[%emt 0:00:00]} 28. Qb3 {[%emt 0:05:06]} Nd8 {[%emt 0:00:00]} 29. Rg4 {[%emt 0:01:14]} Qf5 {[%emt 0:00:00]} 30. Nf3 {[%emt 0:02:29]} Rf8 {[%emt 0:00:00]} 31. Rd1 {[%emt 0:02:41]} e4 {[%emt 0:00:00]} 32. Nd4 {[%emt 0:01:53]} Qe5+ {[%emt 0:00:00]} 33. Kg1 {[%emt 0:00:41]} Rf6 {[%emt 0:00:00]} 34. Qc4 {[%emt 0:02:16]} h5 {[%emt 0:00:00]} 35. Nc6 {[%emt 0:02:52]} Nxc6 {[%emt 0:00:00]} 36. Qxc6 {[%emt 0:01:08]} hxg4 {[%emt 0:00:00]} 37. Qxa8+ {[%emt 0:00:35]} Kh7 {[%emt 0:00:00]} 38. hxg4 {[%emt 0:00:49]} Qg3 {[%emt 0:00:00]} 39. Qxe4+ {[%emt 0:01:38]} g6 {[%emt 0:00:00]} 40. Rd7+ {[%emt 0:00:46]} Kh6 {[%emt 0:00:00]} 41. g5+ {[%emt 0:03:47]} Qxg5 {[%emt 0:00:00]} 42. Rd1 {[%emt 0:34:51]} Qb5 {[%emt 0:10:00]} 43. Qh4+ {[%emt 0:00:00]} Kg7 {[%emt 0:00:00]} 44. Kh2 {[%emt 0:00:00]} Qxb2 {[%emt 0:00:00]} 45. Rd7+ {[%emt 0:00:00]} Rf7 {[%emt 0:00:00]} 46. Rxf7+ {[%emt 0:00:00]} Kxf7 {[%emt 0:00:00]} 47. Qh7+ {[%emt 0:00:00]} Qg7 {[%emt 0:00:00]} 48. Qxg7+ {[%emt 0:00:00]} Kxg7 {[%emt 0:00:00]} 49. g4 {[%emt 0:00:00]} Kf6 {[%emt 0:00:00]} 1/2-1/2

[Event "WALTON 1st Div Women League 2023"]
[Site "Dhaka"]
[Date "2023.03.28"]
[Round "7.13"]
[White "Nusrat Jahan, Alo"]
[Black "Wadifa, Ahmed"]
[Result "*"]
[ECO "C42"]
[WhiteElo "1787"]
[BlackElo "1811"]
[Annotator "NA RC COMBH"]
[PlyCount "24"]
[EventDate "2023.03.22"]
[EventType "team-tourn"]
[EventCountry "BAN"]
[SourceTitle "playchess.com"]
[Source "ChessBase"]
[SourceQuality "1"]
[TimeControl "5400+30"]

{[%evp 8,23,-6,-45,-47,-50,-43,-47,-43,-312,-70,32767,32767,32767,32767,-222,-94,-97]} 1. e4 {[%emt 0:06:52]} e5 {[%emt 0:00:44]} 2. Nf3 {[%emt 0:00:16]} d6 {[%emt 0:00:30]} 3. Nc3 {[%emt 0:01:05]} Nf6 {[%emt 0:01:18]} 4. Bd3 {[%emt 0:00:16]} g6 {[%emt 0:00:19]} 5. Nd5 {[%emt 0:00:52]} Nxd5 $1 {[%emt 0:00:17]} 6. exd5 $15 {[%emt 0:00:11]} Bg7 {[%emt 0:00:14]} 7. O-O {[%emt 0:00:30]} O-O {[%emt 0:00:07]} 8. Be4 $2 {[%emt 0:00:43]} (8. Be2 $15) 8... Nd7 $2 {[%emt 0:00:34]} (8... f5 $19 9. Bd3 e4) 9. d4 {[%emt 0:00:39]} f5 {[%emt 0:01:24]} 10. Bd3 {[%emt 0:00:54]} e4 {[%emt 0:00:13]} 11. Ng5 {[%emt 0:00:52]} Nb6 {[%emt 0:00:36]} (11... exd3 $19 {has better winning chances.} 12. Ne6 dxc2 13. Qxc2 Qe7 14. Qxc7 Rf7) 12. Be2 {[%emt 0:02:17]} Bf6 {[%emt 0:01:23]} *

[Event "WALTON 1st Div Women League 2023"]
[Site "Dhaka"]
[Date "2023.03.28"]
[Round "7.13"]
[White "Nazia, Jafrin Mohona"]
[Black "Nazmin, Akter"]
[Result "0-1"]
[ECO "C42"]
[WhiteElo "1206"]
[BlackElo "1258"]
[Annotator "NA RC COMBH"]
[PlyCount "100"]
[EventDate "2023.03.22"]
[EventType "team-tourn"]
[EventCountry "BAN"]
[SourceTitle "playchess.com"]
[Source "ChessBase"]
[SourceQuality "1"]
[TimeControl "5400+30"]

1. e4 {[%emt 0:06:52]} e5 {[%emt 0:00:44]} 2. Nf3 {[%emt 0:00:16]} d6 {[%emt 0:00:30]} 3. Nc3 {[%emt 0:01:05]} Nf6 {[%emt 0:01:18]} 4. Bd3 {[%emt 0:00:16]} g6 {[%emt 0:00:19]} 5. Nd5 {[%emt 0:00:52]} Nxd5 {[%emt 0:00:17]} 6. exd5 {[%emt 0:00:11]} Bg7 {[%emt 0:00:14]} 7. O-O {[%emt 0:00:30]} O-O {[%emt 0:00:07]} 8. Be4 {[%emt 0:00:43]} Nd7 {[%emt 0:00:34]} 9. d4 {[%emt 0:00:39]} f5 {[%emt 0:01:24]} 10. Bd3 {[%emt 0:00:54]} e4 {[%emt 0:00:13]} 11. Ng5 {[%emt 0:00:52]} Nb6 {[%emt 0:00:36]} 12. Be2 {[%emt 0:02:17]} Bf6 {[%emt 0:01:23]} 13. Ne6 {[%emt 0:01:37]} Bxe6 {[%emt 0:00:08]} 14. dxe6 {[%emt 0:00:11]} Qe7 {[%emt 0:00:02]} 15. d5 {[%emt 0:00:20]} Kh8 {[%emt 0:00:12]} 16. f3 {[%emt 0:00:39]} exf3 {[%emt 0:01:18]} 17. Bxf3 {[%emt 0:00:16]} Bg7 {[%emt 0:00:24]} 18. c3 {[%emt 0:00:44]} Rac8 {[%emt 0:01:16]} 19. Be3 {[%emt 0:00:42]} Nc4 {[%emt 0:00:32]} 20. Qe2 {[%emt 0:01:31]} Nxe3 {[%emt 0:00:39]} 21. Qxe3 {[%emt 0:00:17]} a6 {[%emt 0:00:50]} 22. a4 {[%emt 0:05:31]} c6 {[%emt 0:00:50]} 23. Rac1 {[%emt 0:02:42]} cxd5 {[%emt 0:00:29]} 24. Bxd5 {[%emt 0:00:29]} Rc5 {[%emt 0:00:13]} 25. Qf3 {[%emt 0:03:35]} Be5 {[%emt 0:00:03]} 26. Bxb7 {[%emt 0:09:19]} Qxe6 {[%emt 0:00:34]} 27. Bxa6 {[%emt 0:00:20]} Qb3 {[%emt 0:01:11]} 28. Rb1 {[%emt 0:08:58]} Qxa4 {[%emt 0:00:19]} 29. Qb7 {[%emt 0:06:18]} Qh4 {[%emt 0:01:23]} 30. h3 {[%emt 0:02:42]} Qg3 {[%emt 0:00:32]} 31. Qe7 {[%emt 0:01:51]} Kg8 {[%emt 0:01:54]} 32. Qe6+ {[%emt 0:00:50]} Kg7 {[%emt 0:00:45]} 33. Qe7+ {[%emt 0:02:19]} Rf7 {[%emt 0:00:03]} 34. Qe6 {[%emt 0:01:35]} Rcc7 {[%emt 0:01:34]} 35. Bc4 {[%emt 0:02:13]} h5 {[%emt 0:06:40]} 36. Rf3 {[%emt 0:02:21]} Qh2+ {[%emt 0:00:21]} 37. Kf2 {[%emt 0:00:23]} Bf6 {[%emt 0:00:13]} 38. Qe1 {[%emt 0:08:13]} Rxc4 {[%emt 0:00:41]} 39. Qh1 {[%emt 0:00:30]} Qe5 {[%emt 0:00:40]} 40. Re1 {[%emt 0:00:33]} Qc5+ {[%emt 0:00:57]} 41. Rfe3 {[%emt 0:00:28]} Re7 {[%emt 0:01:22]} 42. Qf1 {[%emt 0:00:48]} Rxe3 {[%emt 0:00:05]} 43. Rxe3 {[%emt 0:00:17]} Re4 {[%emt 0:00:08]} 44. Qe2 {[%emt 0:00:36]} Bg5 {[%emt 0:00:57]} 45. Kf1 {[%emt 0:01:07]} Rxe3 {[%emt 0:00:58]} 46. Qf2 {[%emt 0:00:46]} Qc4+ {[%emt 0:01:05]} 47. Kg1 {[%emt 0:00:37]} Qd3 {[%emt 0:03:15]} 48. Qf1 {[%emt 0:00:38]} Re2 {[%emt 0:00:41]} 49. b4 {[%emt 0:00:16]} Be3+ {[%emt 0:00:05]} 50. Kh1 {[%emt 0:00:35]} Qd2 {[%emt 0:00:20]} 0-1

[Event "WALTON 1st Div Women League 2023"]
[Site "Dhaka"]
[Date "2023.03.28"]
[Round "7.14"]
[White "Ahmed, Walijah"]
[Black "Srija, Seshadri"]
[Result "1-0"]
[ECO "C44"]
[WhiteElo "1920"]
[BlackElo "2194"]
[Annotator "TA"]
[PlyCount "24"]
[EventDate "2023.03.22"]
[EventType "team-tourn"]
[EventCountry "BAN"]
[SourceTitle "playchess.com"]
[Source "ChessBase"]
[SourceQuality "1"]
[TimeControl "5400+30"]

{[%evp 9,24,33,40,34,41,11,54,12,5,-194,453,438,478,464,508,520,520]} 1. e4 {[%emt 0:00:03]} e5 {[%emt 0:06:46]} 2. Nf3 {[%emt 0:00:13][%cal Bg1f3,Bf3g5,Bg5f7][%mdl 32]} Nc6 {[%emt 1:24:44]} 3. d4 {[%emt 0:00:15]} d5 {[%emt 0:01:41]} 4. dxe5 {[%emt 0:00:11]} dxe4 {[%emt 0:00:31]} 5. Qxd8+ {[%emt 0:01:01]} Nxd8 {[%emt 1:23:39]} 6. Ng5 {[%emt 0:00:30] C44: Ponziani Opening and Scotch Gambit.} Nc6 {[%emt 0:00:51]} 7. Bb5 {[%emt 0:01:16][%cal Oc1f4]} Bd7 {[%emt 0:00:35]} 8. Bxc6 {[%emt 0:00:44] White is slightly better.} Bxc6 {[%emt 1:21:39] [#]} 9. O-O $146 {[%emt 0:01:09] [#]} (9. e6 $11 {and White has nothing to worry.} Nh6 10. exf7+ Nxf7 11. Ne6) ({Predecessor:} 9. Be3 Ne7 10. Nd2 Ng6 11. Ngxe4 Nxe5 12. Bf4 Nc4 13. Nxc4 Bxe4 14. O-O-O Bf5 15. Rhe1+ {1-0 Alpaslan,A (1819)-Sahin,E TUR-ch Antalya 2013 (1)}) 9... O-O-O $4 {[%emt 0:00:42][%mdl 8192]} (9... h6 $19 {and life is good for Black.} 10. Nh3 g5) 10. Nxf7 $18 {[%emt 0:00:15] White is clearly winning.} Re8 {[%emt 0:02:35]} 11. Nxh8 {[%emt 0:00:15]} Rxe5 {[%emt 0:00:21]} 12. Nf7 {[%emt 0:00:18]} Rf5 {[%emt 0:00:15] Weighted Error Value: White=0.57/Black=1.18} 1-0

[Event "WALTON 1st Div Women League 2023"]
[Site "Dhaka"]
[Date "2023.03.28"]
[Round "7.14"]
[White "Essaba, Masnun"]
[Black "Jarin, Tasnim"]
[Result "1-0"]
[ECO "C44"]
[WhiteElo "1325"]
[BlackElo "1180"]
[Annotator "NA RC COMBH"]
[PlyCount "101"]
[EventDate "2023.03.22"]
[EventType "team-tourn"]
[EventCountry "BAN"]
[SourceTitle "playchess.com"]
[Source "ChessBase"]
[SourceQuality "1"]
[TimeControl "5400+30"]

1. e4 {[%emt 0:00:03]} e5 {[%emt 0:06:46]} 2. Nf3 {[%emt 0:00:13]} Nc6 {[%emt 0:00:23]} 3. d4 {[%emt 0:00:15]} d5 {[%emt 0:01:41]} 4. dxe5 {[%emt 0:00:11]} dxe4 {[%emt 0:00:31]} 5. Qxd8+ {[%emt 0:01:01]} Nxd8 {[%emt 0:02:04]} 6. Ng5 {[%emt 0:00:30]} Nc6 {[%emt 0:00:51]} 7. Bb5 {[%emt 0:01:16]} Bd7 {[%emt 0:00:35]} 8. Bxc6 {[%emt 0:00:44]} Bxc6 {[%emt 0:02:09]} 9. O-O {[%emt 0:01:09]} O-O-O {[%emt 0:00:42]} 10. Nxf7 {[%emt 0:00:15]} Re8 {[%emt 0:02:35]} 11. Nxh8 {[%emt 0:00:15]} Rxe5 {[%emt 0:00:21]} 12. Nf7 {[%emt 0:00:18]} Rf5 {[%emt 0:00:15]} 13. Ng5 {[%emt 0:00:49]} Bc5 {[%emt 0:01:55]} 14. Nh3 {[%emt 0:03:39]} Rf6 {[%emt 0:00:41]} 15. Nc3 {[%emt 0:00:37]} Rg6 {[%emt 0:00:30]} 16. Be3 {[%emt 0:01:01]} Bd6 {[%emt 0:01:38]} 17. Rad1 {[%emt 0:01:21]} Ne7 {[%emt 0:02:09]} 18. Nf4 {[%emt 0:00:50]} Bxf4 {[%emt 0:01:23]} 19. Bxf4 {[%emt 0:00:18]} e3 {[%emt 0:00:45]} 20. Bg3 {[%emt 0:00:22]} Nf5 {[%emt 0:00:34]} 21. fxe3 {[%emt 0:00:25]} Nd6 {[%emt 0:03:14]} 22. e4 {[%emt 0:00:56]} b6 {[%emt 0:00:41]} 23. Nd5 {[%emt 0:00:31]} Kd8 {[%emt 0:01:22]} 24. Bxd6 {[%emt 0:00:58]} cxd6 {[%emt 0:01:20]} 25. Nc3 {[%emt 0:00:45]} Ke7 {[%emt 0:01:11]} 26. Rd3 {[%emt 0:00:28]} b5 {[%emt 0:00:42]} 27. a3 {[%emt 0:00:47]} a5 {[%emt 0:01:01]} 28. b4 {[%emt 0:00:11]} axb4 {[%emt 0:01:10]} 29. axb4 {[%emt 0:00:06]} Ke6 {[%emt 0:01:25]} 30. Rfd1 {[%emt 0:01:09]} Ke7 {[%emt 0:00:41]} 31. Rg3 {[%emt 0:00:43]} Re6 {[%emt 0:01:25]} 32. Rf1 {[%emt 0:01:40]} g6 {[%emt 1:03:50]} 33. Re3 {[%emt 1:23:14]} Ke8 {[%emt 0:00:00]} 34. Rfe1 {[%emt 0:00:00]} Kd7 {[%emt 0:00:00]} 35. Nd5 {[%emt 0:00:00]} Kc8 {[%emt 0:00:00]} 36. Kf2 {[%emt 0:00:00]} Re5 {[%emt 0:00:00]} 37. Rh3 {[%emt 0:00:00]} h5 {[%emt 0:00:00]} 38. Rf3 {[%emt 0:00:00]} Kd7 {[%emt 0:00:00]} 39. Rf7+ {[%emt 0:00:00]} Ke6 {[%emt 0:00:00]} 40. Rf6+ {[%emt 0:00:00]} Kd7 {[%emt 0:00:00]} 41. Rxg6 {[%emt 0:00:00]} Bxd5 {[%emt 0:00:00]} 42. exd5 {[%emt 0:00:00]} Rxd5 {[%emt 0:00:00]} 43. Rg3 {[%emt 0:00:00]} Rd4 {[%emt 0:00:00]} 44. c3 {[%emt 0:00:00]} Rc4 {[%emt 0:00:00]} 45. Ree3 {[%emt 0:00:00]} h4 {[%emt 0:00:00]} 46. Rg7+ {[%emt 0:00:00]} Kc6 {[%emt 0:00:00]} 47. Rf7 {[%emt 0:00:00]} Kd5 {[%emt 0:00:00]} 48. Rff3 {[%emt 0:00:00]} Kc6 {[%emt 0:00:00]} 49. Rd3 {[%emt 0:00:00]} Kd7 {[%emt 0:00:00]} 50. Rd4 {[%emt 0:00:00]} Rc6 {[%emt 0:00:00]} 51. Rxh4 {[%emt 0:00:00]} 1-0

[Event "WALTON 1st Div Women League 2023"]
[Site "Dhaka"]
[Date "2023.03.28"]
[Round "7.15"]
[White "Parveen, Tanima"]
[Black "Noshin, Anjum"]
[Result "*"]
[WhiteElo "1960"]
[BlackElo "1877"]
[Annotator "TA"]
[PlyCount "24"]
[EventDate "2023.03.22"]
[EventType "team-tourn"]
[EventCountry "BAN"]
[SourceTitle "playchess.com"]
[Source "ChessBase"]
[SourceQuality "1"]
[TimeControl "5400+30"]

{[%evp 9,9,-44]} 1. e4 {[%emt 0:05:04]} c5 {[%emt 0:08:53]} 2. Nf3 {[%emt 0:00:00]} Nc6 {[%emt 1:22:37]} 3. Bc4 {[%emt 0:00:00]} e5 {[%emt 0:01:14]} 4. c3 {[%emt 0:00:00]} Nf6 {[%emt 0:02:01]} 5. Qb3 {[%emt 0:00:00] [#] An uneventful encounter.} {Predecessor:} Na5 $146 6. Qa4 {B22: Sicilian: 2 c3.} Nxc4 7. Qxc4 d6 8. O-O Be6 9. Qe2 Be7 10. d4 Qc7 11. Bg5 O-O 12. d5 Bd7 {1-0 Antonenko,V-Murashova,E RUS-ch U14 Girls 2001} *

[Event "WALTON 1st Div Women League 2023"]
[Site "Dhaka"]
[Date "2023.03.28"]
[Round "7.15"]
[White "Zowena, Mehbish"]
[Black "Warisa Haider"]
[Result "0-1"]
[ECO "B22"]
[WhiteElo "1121"]
[BlackElo "1302"]
[Annotator "NA RC COMBH"]
[PlyCount "98"]
[EventDate "2023.03.22"]
[EventType "team-tourn"]
[EventCountry "BAN"]
[SourceTitle "playchess.com"]
[Source "ChessBase"]
[SourceQuality "1"]
[TimeControl "5400+30"]

1. e4 {[%emt 1:31:00]} c5 {[%emt 0:08:53]} 2. Nf3 {[%emt 0:00:00]} Nc6 {[%emt 0:00:09]} 3. Bc4 {[%emt 0:00:00]} e5 {[%emt 0:01:14]} 4. c3 {[%emt 0:00:00]} Nf6 {[%emt 0:02:01]} 5. Qb3 {[%emt 0:00:00]} Qe7 {[%emt 0:04:47]} 6. Ng5 {[%emt 0:00:00]} Nd8 {[%emt 0:03:44]} 7. d3 {[%emt 0:00:00]} g6 {[%emt 0:01:38]} 8. O-O {[%emt 0:00:00]} Bg7 {[%emt 0:02:22]} 9. f4 {[%emt 0:00:00]} exf4 {[%emt 0:06:42]} 10. Rxf4 {[%emt 0:00:00]} d6 {[%emt 0:04:00]} 11. Nd2 {[%emt 0:00:00]} h6 {[%emt 0:02:22]} 12. Ngf3 {[%emt 0:00:00]} Nh5 {[%emt 0:00:26]} 13. Rh4 {[%emt 0:00:00]} Bf6 {[%emt 0:04:42]} 14. Rxh5 {[%emt 0:00:00]} gxh5 {[%emt 0:00:32]} 15. Nf1 {[%emt 0:00:00]} Be6 {[%emt 0:01:29]} 16. Bb5+ {[%emt 0:00:00]} Bd7 {[%emt 0:02:45]} 17. Ng3 {[%emt 0:00:00]} Bxb5 {[%emt 0:14:03]} 18. Qxb5+ {[%emt 0:00:00]} Qd7 {[%emt 0:01:08]} 19. Qxd7+ {[%emt 0:00:00]} Kxd7 {[%emt 0:00:12]} 20. Nxh5 {[%emt 0:00:00]} Be7 {[%emt 0:03:48]} 21. e5 {[%emt 0:00:00]} Nc6 {[%emt 0:05:04]} 22. Bf4 {[%emt 0:00:00]} dxe5 {[%emt 0:02:59]} 23. Nxe5+ {[%emt 0:00:00]} Nxe5 {[%emt 0:02:31]} 24. Bxe5 {[%emt 0:00:00]} Rhg8 {[%emt 0:02:21]} 25. Bg7 {[%emt 0:00:00]} Bg5 {[%emt 0:00:57]} 26. Rf1 {[%emt 0:00:00]} Rae8 {[%emt 0:07:04]} 27. Rxf7+ {[%emt 0:00:00]} Re7 {[%emt 0:00:12]} 28. Nf6+ {[%emt 0:00:00]} Bxf6 {[%emt 0:01:19]} 29. Rxf6 {[%emt 0:00:00]} Rgxg7 {[%emt 0:00:38]} 30. Rxh6 {[%emt 0:00:00]} Re2 {[%emt 0:00:45]} 31. b3 {[%emt 0:00:00]} Rexg2+ {[%emt 0:00:57]} 32. Kf1 {[%emt 0:00:00]} Rxa2 {[%emt 0:00:08]} 33. Rh5 {[%emt 0:00:00]} b6 {[%emt 0:00:45]} 34. Rd5+ {[%emt 0:00:00]} Kc6 {[%emt 0:00:06]} 35. Rh5 {[%emt 0:00:00]} Rb2 {[%emt 0:00:23]} 36. b4 {[%emt 0:00:00]} cxb4 {[%emt 0:00:25]} 37. cxb4 {[%emt 0:00:00]} Rxb4 {[%emt 0:00:36]} 38. Ke2 {[%emt 0:00:00]} Rb2+ {[%emt 0:01:12]} 39. Ke3 {[%emt 0:00:00]} Rgg2 {[%emt 0:00:08]} 40. h3 {[%emt 0:00:00]} Rb5 {[%emt 0:00:32]} 41. Rh4 {[%emt 0:00:00]} Rg3+ {[%emt 0:00:47]} 42. Ke2 {[%emt 0:00:00]} Rb2+ {[%emt 0:00:07]} 43. Kf1 {[%emt 0:00:00]} Rxd3 {[%emt 0:00:05]} 44. Ke1 {[%emt 0:00:00]} Ra3 {[%emt 0:00:34]} 45. Rc4+ {[%emt 0:00:00]} Kb5 {[%emt 0:00:17]} 46. Rc1 {[%emt 0:22:30]} Rxh3 {[%emt 0:00:20]} 47. Rc2 {[%emt 0:00:00]} Rxc2 {[%emt 0:00:12]} 48. Kd1 {[%emt 0:00:00]} Rg2 {[%emt 0:00:05]} 49. Ke1 {[%emt 0:00:00]} Rh1# {[%emt 0:00:10]} 0-1